bitfinex/quotes_ETHUSD_20220213
["timestamp","ask_amount","ask_price","bid_price","bid_amount"]
[1644768860789,0.02119656,2896.5,2896.1,0.04579236]
[1644768861442,0.02119656,2896.5,2896.0,1.07253868]
[1644768862750,0.02119656,2896.5,2896.0,1.93576868]
[1644768863346,0.02119656,2896.5,2896.1,0.86326]
[1644768863645,0.02119656,2896.5,2896.2,0.1726]
[1644768863845,0.02119656,2896.5,2896.1,1.86326]
[1644768864146,0.02119656,2896.5,2896.2,0.00398707]
[1644768864950,0.04823741,2896.5,2896.2,0.00398707]
[1644768865184,0.04823741,2896.5,2896.1,1.0]
[1644768865389,0.04823741,2896.5,2896.2,0.01144685]
[1644768866186,0.00173788,2896.4,2896.2,0.01144685]
[1644768866386,0.00173788,2896.4,2896.1,0.7726]
[1644768866592,0.00173788,2896.4,2896.2,1.28865685]
[1644768866792,0.00173788,2896.4,2896.3,0.97806606]
[1644768867198,0.00173788,2896.4,2896.2,0.01144685]
[1644768867695,0.00173788,2896.4,2896.1,0.1726]
[1644768867896,0.00173788,2896.4,2896.2,0.01144692]
[1644768868693,0.00173788,2896.4,2896.1,1.32189357]
[1644768868952,0.00173788,2896.4,2896.2,0.01144692]
[1644768869951,0.00173788,2896.4,2896.1,0.1726]
[1644768870153,0.00173788,2896.4,2896.2,0.01144692]
[1644768871053,0.00173788,2896.4,2896.1,0.86324]
[1644768871256,0.00173788,2896.4,2896.2,0.89187682]
[1644768871456,0.00173788,2896.4,2896.2,0.90332374]
[1644768872057,0.00173788,2896.4,2896.2,1.31732374]
[1644768872461,0.00173788,2896.4,2896.2,1.30587682]
[1644768872685,0.00173788,2896.4,2896.2,3.04360374]
[1644768873090,0.1726,2897.2,2896.3,22.36306]
[1644768873287,0.01144113,2897.6,2896.4,0.714]
[1644768873487,0.01144113,2897.6,2896.9,0.86293]
[1644768873686,3.95507674,2897.9,2896.9,0.414]
[1644768873687,0.63817674,2897.9,2896.9,0.414]
[1644768873895,0.01144229,2897.6,2896.9,0.414]
[1644768874094,0.01144229,2897.6,2896.5,0.8745869]
[1644768874095,1.46870799,2897.5,2896.5,0.8745869]
[1644768874293,1.64110799,2897.5,2896.5,0.8745869]
[1644768874494,0.97604528,2897.4,2896.6,1.27701]
[1644768874692,0.97604528,2897.4,2896.7,1.72596]
[1644768875596,0.01144294,2897.6,2896.8,1.72594]
[1644768875794,0.01144294,2897.6,2896.9,0.86294]
[1644768875996,0.01144294,2897.6,2896.9,2.58884]
[1644768876193,0.1724,2898.0,2896.9,3.58884]
[1644768876434,3.88811815,2898.1,2896.9,3.58884]
[1644768876435,0.01144345,2897.6,2896.9,3.58884]
[1644768876639,0.01144345,2897.6,2897.0,1.19192854]
[1644768877040,0.01144345,2897.6,2897.0,3.21782854]
[1644768877240,0.63817674,2898.4,2897.0,3.21782854]
[1644768877241,0.1724,2898.3,2897.0,3.51782854]
[1644768877441,0.63817674,2898.4,2897.0,3.51782854]
[1644768877442,1.46855926,2898.2,2897.1,1.414]
[1644768877641,0.1724,2898.4,2897.1,1.414]
[1644768877642,0.01144371,2897.6,2897.1,1.414]
[1644768878040,0.01144371,2897.6,2897.3,0.86285]
[1644768878246,0.01144371,2897.6,2897.4,0.414]
[1644768878643,1.13435345,2898.0,2897.4,0.414]
[1644768878842,0.0114441,2897.6,2897.4,0.414]
[1644768879644,0.86639709,2898.5,2897.5,0.86286]
[1644768879844,1.46844295,2898.4,2897.5,0.86286]
[1644768880043,0.01087384,2897.6,2897.5,0.86286]
[1644768880687,0.01087384,2897.6,2897.3,1.72562]
[1644768880688,0.28951811,2897.4,2897.3,1.72562]
[1644768880893,0.28951811,2897.4,2897.3,1.89802]
[1644768881289,0.28951811,2897.4,2897.2,1.7257]
[1644768881494,0.28951811,2897.4,2897.0,0.86303]
[1644768881692,0.28951811,2897.4,2897.3,0.00197438]
[1644768882493,0.46191811,2897.4,2897.3,0.00197438]
[1644768882696,1.93070953,2897.4,2897.3,0.00197438]
[1644768882894,0.46191811,2897.4,2897.3,0.00197438]
[1644768883094,0.28951811,2897.4,2897.3,0.00197438]
[1644768883694,0.46191811,2897.4,2897.3,0.00197438]
[1644768883936,1.93076896,2897.4,2897.3,0.00197438]
[1644768884544,1.75836896,2897.4,2897.3,0.00197438]
[1644768884943,0.28951811,2897.4,2897.3,0.00197438]
[1644768885343,1.75832302,2897.4,2897.3,0.00197438]
[1644768885543,0.28951811,2897.4,2897.3,0.00197438]
[1644768886147,1.75832518,2897.4,2897.3,0.00197438]
[1644768886343,1.760849,2897.4,2896.5,0.1826475]
[1644768886543,2.796389,2897.4,2896.5,1.72619]
[1644768886745,1.46880707,2897.3,2896.5,2.58936]
[1644768887042,1.46880707,2897.3,2896.5,2.5996273]
[1644768887243,1.46880707,2897.3,2896.5,1.7364573]
[1644768887702,0.46444193,2897.4,2896.6,0.86306]
[1644768887892,0.29204193,2897.4,2896.6,0.86306]
[1644768888091,0.29204193,2897.4,2896.6,1.72619]
[1644768888292,0.29204193,2897.4,2896.7,0.88609129]
[1644768888491,0.29204193,2897.4,2896.7,1.74911129]
[1644768888695,0.29204193,2897.4,2897.0,0.95567057]
[1644768888891,0.29204193,2897.4,2897.0,2.98162057]
[1644768889095,0.29204193,2897.4,2897.0,3.39562057]
[1644768889392,0.29204193,2897.4,2897.1,0.86298]
[1644768889592,0.29204193,2897.4,2897.1,1.03538]
[1644768890594,0.29204193,2897.4,2897.2,0.86296]
[1644768890994,0.29204193,2897.4,2897.1,1.72591]
[1644768891203,0.00251889,2897.2,2897.1,0.86298]
[1644768891438,0.242037,2897.4,2897.1,0.86298]
[1644768891641,0.242037,2897.4,2897.1,1.03538]
[1644768891940,0.242037,2897.4,2897.1,0.86298]
[1644768892541,0.242037,2897.4,2897.2,3.6027]
[1644768893342,0.242037,2897.4,2897.2,4.46559]
[1644768893542,0.242037,2897.4,2897.2,1.014]
[1644768893747,0.242037,2897.4,2897.0,1.81873057]
[1644768894643,0.242037,2897.4,2897.0,2.68176057]
[1644768894843,0.242037,2897.4,2897.1,0.863]
[1644768895692,0.242037,2897.4,2897.2,0.86299]
[1644768896092,0.242037,2897.4,2897.1,0.863]
[1644768896396,0.242037,2897.4,2897.3,0.00148417]
[1644768899043,2.24151743,2898.0,2897.3,0.00148417]
[1644768899239,1.46860639,2897.9,2897.3,0.00148417]
[1644768899441,0.1724,2897.8,2897.3,0.00148417]
[1644768899741,1.46860639,2897.7,2897.3,0.00148417]
[1644768900342,0.1724,2898.0,2897.3,0.00148417]
[1644768900542,1.46850875,2897.9,2897.3,0.00148417]
[1644768900741,3.99256756,2898.3,2897.3,0.00148417]
[1644768900742,1.46850875,2897.8,2897.3,0.00148417]
[1644768900942,0.1724,2898.0,2897.3,0.00148417]
[1644768901145,1.46858092,2897.9,2897.3,0.86446417]
[1644768901445,0.1724,2898.2,2897.3,0.86446417]
[1644768901446,0.0023439,2897.4,2897.3,0.86446417]
[1644768902451,0.0023439,2897.4,2897.3,1.16446417]
[1644768902702,0.0023439,2897.4,2897.3,2.05055546]
[1644768903092,0.0023439,2897.4,2897.3,2.00055546]
[1644768903293,0.0023439,2897.4,2897.3,3.72618546]
[1644768903495,0.0023439,2897.4,2897.3,3.17618546]
[1644768904095,0.0023439,2897.4,2897.3,3.47618546]
[1644768904298,0.0023439,2897.4,2897.3,3.77618546]
[1644768904496,0.0023439,2897.4,2897.3,3.9183047]
[1644768904695,0.0023439,2897.4,2897.3,3.77618546]
[1644768906198,1e-08,2897.4,2897.3,3.94858546]
[1644768906442,1e-08,2897.4,2897.3,24.14858546]
[1644768906643,0.00916533,2897.7,2897.3,4.0907047]
[1644768906847,0.00916533,2897.7,2897.6,0.86268]
[1644768907142,0.00916533,2897.7,2897.6,3.00168444]
[1644768907143,0.0023439,2897.7,2897.6,3.00168444]
[1644768907343,0.01279327,2897.7,2897.6,3.00168444]
[1644768907844,0.01279327,2897.7,2897.6,3.17377573]
[1644768908247,0.0023439,2897.7,2897.6,3.17377573]
[1644768909047,0.0023439,2897.7,2897.6,4.54898765]
[1644768910492,0.0023439,2897.7,2897.6,24.74898765]
[1644768910795,0.0023439,2897.7,2897.6,4.74486489]
[1644768910992,0.0023439,2897.7,2897.6,4.54898765]
[1644768911192,0.01045897,2897.8,2897.6,4.55353921]
[1644768911394,0.01045897,2897.8,2897.7,2.75999]
[1644768911598,0.01045897,2897.8,2897.7,3.17399]
[1644768911796,0.04182411,2898.6,2897.9,20.2]
[1644768911999,0.00358709,2898.8,2898.2,20.2]
[1644768912195,0.00218387,2899.0,2898.3,0.414]
[1644768912397,0.04108186,2898.6,2898.4,0.86245]
[1644768912597,0.04108186,2898.6,2898.4,1.57645]
[1644768912798,0.04108186,2898.6,2898.5,1.1085242]
[1644768913296,0.00218387,2899.0,2898.5,2.8335342]
[1644768913497,0.00218387,2899.0,2898.5,3.86811549]
[1644768913698,0.00218387,2899.0,2898.7,1.72497]
[1644768913941,0.00218387,2899.0,2898.7,0.15922027]
[1644768914142,0.00218387,2899.0,2898.6,0.6]
[1644768914341,0.00218387,2899.0,2898.8,1.37521192]
[1644768914941,0.00218387,2899.0,2898.8,1.32521192]
[1644768915145,0.00218387,2899.0,2898.8,1.62521192]
[1644768915343,0.00218387,2899.0,2898.8,1.32521192]
[1644768915748,0.00218387,2899.0,2898.8,2.18773192]
[1644768915749,0.01311304,2899.0,2898.8,2.18773192]
[1644768915946,1.46794686,2898.9,2898.8,1.32521192]
[1644768916549,0.01092917,2899.0,2898.8,1.32521192]
[1644768916750,0.17598709,2899.2,2898.8,1.32521192]
[1644768916751,0.00358709,2899.2,2898.8,1.32521192]
[1644768916950,1.16142493,2899.3,2898.8,1.32521192]
[1644768916951,0.1724,2899.1,2898.8,1.32521192]
[1644768917151,1.47896462,2899.0,2898.8,1.32521192]
[1644768917695,0.01092923,2899.0,2898.8,1.32521192]
[1644768917890,0.1724,2899.2,2898.8,1.32521192]
[1644768918090,1.16501202,2899.3,2898.8,1.32521192]
[1644768918091,1.46800778,2899.1,2898.8,1.32521192]
[1644768918290,1.47891375,2899.0,2898.8,1.32521192]
[1644768918896,0.01090597,2899.0,2898.8,1.32521192]
[1644768919095,4.9786419,2899.7,2898.8,1.32521192]
[1644768919096,3.83476498,2899.6,2898.8,1.32521192]
[1644768919295,1.4679814,2899.5,2899.1,0.99154996]
[1644768919502,1.4679814,2899.4,2899.1,0.99154996]
[1644768919700,0.04361736,2899.5,2899.4,1.27521192]
[1644768919895,0.04361736,2899.5,2899.4,1.57521192]
[1644768920097,0.04361736,2899.5,2899.4,1.27521192]
[1644768920297,0.04361736,2899.5,2899.4,1.57521192]
[1644768920495,0.17598709,2900.1,2899.4,1.57521192]
[1644768920696,0.84590876,2900.3,2899.4,1.57521192]
[1644768920697,0.01090532,2899.6,2899.4,1.57521192]
[1644768921098,0.01090532,2899.6,2899.5,0.86226]
[1644768921299,0.01090532,2899.6,2899.5,1.16226]
[1644768921563,0.1724,2900.5,2899.5,0.86226]
[1644768921564,0.00358709,2900.4,2899.5,0.86226]
[1644768921865,0.0109068,2899.7,2899.5,0.86226]
[1644768922058,0.0109068,2899.7,2899.4,1.27521192]
[1644768922264,0.0109068,2899.7,2899.5,1.72448]
[1644768922658,0.1724,2900.0,2899.5,1.72448]
[1644768922864,1.47123583,2899.9,2899.5,1.72448]
[1644768923063,0.01090674,2899.7,2899.5,1.72448]
[1644768923965,0.00358709,2899.9,2899.5,1.72448]
[1644768924164,0.01090674,2899.7,2899.5,1.72448]
[1644768924770,0.01090674,2899.7,2899.6,0.3]
[1644768924978,0.01090674,2899.7,2899.6,1.8493]
[1644768925205,0.17598709,2900.0,2899.6,1.8493]
[1644768925206,0.1724,2900.8,2899.6,3.74584]
[1644768925407,0.01090647,2899.8,2899.7,0.86204]
[1644768925610,0.01090647,2899.8,2899.7,0.797]
[1644768925807,0.01090647,2899.8,2899.7,1.797]
[1644768926012,0.01090647,2899.8,2899.7,3.52108]
[1644768926411,0.00223799,2899.9,2899.7,3.52108]
[1644768926709,0.00223799,2899.9,2899.8,1.30644733]
[1644768927512,0.00223799,2899.9,2899.8,1.60644733]
[1644768928011,0.00223799,2899.9,2899.8,1.90644733]
[1644768928215,0.00223799,2899.9,2899.8,1.60644733]
[1644768928412,0.00223799,2899.9,2899.8,2.90644733]
[1644768928616,0.00223799,2899.9,2899.8,2.60644733]
[1644768929052,0.00223799,2899.9,2899.8,2.43404733]
[1644768929654,0.00223799,2899.9,2899.8,2.73404733]
[1644768930056,0.00223799,2899.9,2899.8,4.00925925]
[1644768930254,0.00223799,2899.9,2899.8,4.18165925]
[1644768930854,0.04578681,2900.6,2900.4,1.14657706]
[1644768930855,0.00947377,2900.6,2900.4,1.14657706]
[1644768931055,0.00947377,2900.6,2900.4,2.00864706]
[1644768931255,0.00359381,2901.0,2900.4,2.00864706]
[1644768931457,0.1723,2901.1,2900.4,1.14657706]
[1644768931458,0.86215,2900.9,2900.4,1.14657706]
[1644768932059,0.17589381,2901.1,2900.4,1.14657706]
[1644768932257,1.46725495,2901.0,2900.4,1.14657706]
[1644768932459,0.00359381,2901.1,2900.4,1.14657706]
[1644768932692,0.01144773,2900.9,2900.5,0.01144946]
[1644768933296,0.01144773,2900.9,2900.5,0.87349946]
[1644768933696,0.00359381,2901.1,2900.5,0.86205]
[1644768933898,0.0114478,2900.8,2900.4,2.1790884]
[1644768934299,0.0114478,2900.8,2900.4,3.0411184]
[1644768934497,0.0114478,2900.8,2900.5,0.86205]
[1644768934900,0.00359381,2901.3,2900.5,1.86205]
[1644768935101,0.00359381,2901.3,2900.6,0.3]
[1644768935300,0.1723,2901.9,2901.0,1.54943596]
[1644768935301,1.4670052,2901.8,2901.0,1.54943596]
[1644768935501,0.00359381,2901.7,2901.1,0.8617]
[1644768935703,1.47057313,2901.9,2901.1,0.8617]
[1644768935902,1.47057313,2901.9,2901.1,1.8617]
[1644768936571,1.47057313,2901.9,2901.0,4.13453596]
[1644768936572,1.18067622,2901.7,2901.0,4.13453596]
[1644768936774,1.47057313,2901.6,2901.1,0.86182]
[1644768936971,0.00359381,2901.7,2901.0,4.13453596]
[1644768937172,1.46697061,2902.0,2901.0,2.41100596]
[1644768937371,0.00359381,2901.9,2901.0,2.41100596]
[1644768937572,0.00742275,2901.5,2901.0,3.41100596]
[1644768937776,0.00742275,2901.5,2901.0,2.41100596]
[1644768938474,1.17865079,2901.5,2901.0,2.41100596]
[1644768938677,0.00742275,2901.4,2901.0,0.68760596]
[1644768938873,0.17972275,2901.4,2901.0,0.68760596]
[1644768939075,1.46716143,2901.3,2901.0,0.68760596]
[1644768939273,0.1723,2901.2,2901.0,0.68760596]
[1644768939471,0.1723,2901.3,2901.0,0.68760596]
[1644768939672,1.03435,2901.3,2901.0,0.68760596]
[1644768939872,0.01145328,2901.2,2901.0,0.68760596]
[1644768940491,0.01145328,2901.2,2900.8,0.1723]
[1644768940693,0.01145328,2901.2,2901.1,1.27521192]
[1644768940894,0.17589381,2901.3,2901.1,1.27521192]
[1644768941099,0.1723,2901.3,2901.1,1.27521192]
[1644768941299,0.1723,2901.3,2901.2,0.00288032]
[1644768941698,8.93953847,2901.3,2901.1,1.27641665]
[1644768941899,1.46723847,2901.2,2901.1,1.0799417]
[1644768942099,1.63953847,2901.2,2901.1,0.93674281]
[1644768942299,1.63953847,2901.2,2899.9,0.17209129]
[1644768942300,4.95,2901.1,2899.9,0.17209129]
[1644768942500,0.17589381,2901.1,2900.4,0.01145256]
[1644768942701,1.21730264,2901.0,2900.4,0.01145256]
[1644768943006,0.50943353,2901.2,2900.4,0.01145256]
[1644768943007,0.17589381,2900.9,2900.4,0.01145256]
[1644768943202,1.10392884,2901.1,2900.2,1.11341755]
[1644768943402,0.00359381,2900.8,2900.2,1.11341755]
[1644768943601,0.00359381,2900.8,2900.4,0.01145128]
[1644768943602,0.01144935,2900.8,2900.4,0.01145128]
[1644768944445,0.00359381,2901.0,2899.7,1.72429]
[1644768944646,0.00359381,2901.0,2899.4,1.72458]
[1644768944647,5.0,2900.3,2899.4,1.72458]
[1644768944847,0.86253,2900.1,2898.5,8.0827]
[1644768945051,0.00359381,2900.2,2898.5,8.0827]
[1644768945052,0.00359381,2900.0,2898.5,8.0827]
[1644768945251,0.1724,2900.2,2898.5,8.0827]
[1644768945252,0.00359381,2900.2,2898.5,8.0827]
[1644768945653,0.86595381,2900.2,2898.8,1.72487]
[1644768945856,0.86595381,2900.2,2898.9,0.86243]
[1644768946051,0.86595381,2900.2,2899.2,0.01145686]
[1644768946252,0.00359381,2900.2,2899.2,0.01145686]
[1644768946852,0.00359381,2900.2,2898.9,1.74199496]
[1644768947052,0.98472392,2900.2,2899.1,0.86241]
[1644768947252,0.98472392,2900.2,2899.6,0.01145637]
[1644768947895,1.84707392,2900.2,2899.6,0.01145637]
[1644768948094,0.86248,2900.1,2898.9,1.0]
[1644768948299,3.79996477,2900.0,2898.8,1.72475]
[1644768948494,0.00359381,2900.0,2899.8,0.0114561]
[1644768948694,0.00359381,2900.1,2899.8,0.0114561]
[1644768948894,0.98472392,2900.2,2899.8,0.0114561]
[1644768949098,1.72501,2899.9,2899.8,0.0114561]
[1644768949298,1.72501,2899.9,2899.0,1.08881471]
[1644768949299,0.8625,2900.0,2899.0,1.08881471]
[1644768949498,0.00359381,2899.8,2899.0,1.08881471]
[1644768949698,4.68943102,2900.1,2899.3,0.01550031]
[1644768949699,0.00359381,2900.0,2899.3,0.01550031]
[1644768950098,0.86241,2900.0,2899.3,0.87790031]
[1644768950298,0.00359381,2899.9,2899.3,0.87790031]
[1644768950498,5.15223184,2900.4,2899.3,0.87790031]
[1644768950499,5.00359381,2900.1,2899.3,0.87790031]
[1644768950700,5.00359381,2900.1,2899.3,0.01550031]
[1644768950701,5.0,2900.1,2899.3,0.01550031]
[1644768950903,0.17599381,2900.0,2899.5,0.01145644]
[1644768951101,5.0,2899.8,2899.5,0.01145644]
[1644768951304,0.86267,2899.6,2899.5,0.01145644]
[1644768951551,2.0310042,2899.6,2899.5,0.01145644]
[1644768951751,2.0310042,2899.6,2899.3,0.01550031]
[1644768951950,2.0310042,2899.6,2899.4,0.01145658]
[1644768952351,0.86274,2899.2,2898.2,0.1724]
[1644768952550,0.86274,2899.2,2898.1,0.19083462]
[1644768953254,0.86283,2899.1,2898.1,0.19083462]
[1644768953456,0.91501596,2898.6,2898.1,0.19083462]
[1644768953853,0.86284,2898.8,2898.1,0.19083462]
[1644768955307,1.76606012,2898.8,2898.1,0.19083462]
[1644768955508,1.76606012,2898.8,2898.3,0.00404066]
[1644768955814,3.79591836,2898.7,2898.3,0.00404066]
[1644768956013,3.79591836,2898.7,2897.8,0.01616543]
[1644768956014,0.00574131,2898.2,2897.8,0.01616543]
[1644768956409,0.00574131,2898.2,2897.5,0.13819997]
[1644768956609,0.00574131,2898.2,2897.4,0.1724]
[1644768956813,0.8753078,2897.9,2897.2,1.72569]
[1644768957110,0.8753078,2897.9,2897.1,0.1724]
[1644768957314,0.8753078,2897.9,2897.0,0.1724]
[1644768957510,0.8753078,2897.9,2896.9,0.1724]
[1644768958010,0.3753078,2897.9,2897.0,0.88632427]
[1644768958615,0.00574131,2898.2,2897.0,0.88632427]
[1644768958811,0.00574131,2898.2,2897.0,2.34924427]
[1644768959047,0.00574131,2898.2,2897.0,3.34924427]
[1644768959452,0.00574131,2898.2,2897.0,0.88632427]
[1644768959651,0.00574131,2898.2,2897.1,0.1724]
[1644768959851,1.11155895,2898.1,2897.1,0.1724]
[1644768960456,1.11155895,2898.1,2897.5,0.01146061]
[1644768960457,5.0,2897.9,2897.5,0.01146061]
[1644768960654,5.0,2897.7,2897.5,0.01146061]
[1644768960852,0.497,2897.8,2897.5,0.01146061]
[1644768961057,0.6694,2897.8,2897.5,0.01146061]
[1644768961261,0.6694,2897.8,2896.3,7.47]
[1644768961458,0.6723669,2897.8,2896.3,7.47]
[1644768961662,1.5355969,2897.8,2897.5,0.01146061]
[1644768961858,2.3988069,2897.8,2897.5,0.01146061]
[1644768962461,1.09814695,2897.7,2896.6,0.9069439]
[1644768962705,5.34595046,2897.7,2897.5,0.01146061]
[1644768962901,1.09814695,2897.7,2897.5,0.01146061]
[1644768963101,3.98747803,2897.6,2897.5,0.01146061]
[1644768963706,4.00208692,2897.6,2896.4,0.1724]
[1644768963913,5.0,2897.1,2896.2,0.00197189]
[1644768964211,5.0,2897.1,2895.9,0.00197189]
[1644768964212,0.01291136,2896.9,2895.9,0.00197189]
[1644768964407,0.01291136,2896.9,2895.6,0.00197189]
[1644768964607,0.497,2897.0,2895.2,3.38884623]
[1644768964808,0.497,2897.0,2895.6,0.86333]
[1644768965012,1.72675,2897.1,2895.7,0.17457189]
[1644768965207,0.29236534,2897.3,2896.0,0.01146277]
[1644768965507,0.29236534,2897.3,2896.1,0.1726]
[1644768965707,0.29236534,2897.3,2896.2,0.00197189]
[1644768965907,1.18606048,2896.9,2896.2,0.00197189]
[1644768966310,0.29236534,2897.3,2896.6,0.01146186]
[1644768966554,0.11976534,2897.3,2896.6,0.01146186]
[1644768966955,5.0,2896.7,2895.7,3.45275]
[1644768967155,5.0,2896.5,2895.4,0.86333]
[1644768967356,5.0,2896.5,2895.2,0.007]
[1644768967357,0.01208786,2896.2,2895.2,0.007]
[1644768967754,0.6696,2896.4,2895.2,0.007]
[1644768967955,0.6696,2896.4,2895.3,0.86342]
[1644768968159,8.267,2897.1,2895.3,0.86342]
[1644768968356,1.1376,2897.1,2895.3,0.86342]
[1644768968556,1.1376,2897.1,2895.4,0.3]
[1644768968754,1.1376,2897.1,2895.3,1.03551129]
[1644768968755,4.5947,2897.2,2895.3,0.17209129]
[1644768968955,0.0114559,2896.3,2896.1,0.01145705]
[1644768969356,0.0114559,2896.3,2896.2,0.1726]
[1644768969658,0.0114559,2896.3,2895.4,1.0]
[1644768969659,0.48871449,2896.3,2895.4,1.0]
[1644768969858,0.6696,2896.2,2895.2,2.84677]
[1644768970057,0.01250859,2896.3,2895.2,2.84677]
[1644768970301,0.01250859,2896.3,2895.5,0.86341]
[1644768970500,1.05458203,2896.0,2895.5,0.86341]
[1644768970701,0.1726,2896.7,2895.5,0.86341]
[1644768970901,0.1726,2896.9,2895.5,1.72673]
[1644768971100,0.1726,2896.9,2895.5,2.58982]
[1644768971302,0.00141401,2896.2,2895.6,1.0]
[1644768971509,0.00141401,2896.2,2895.5,2.58982]
[1644768971905,0.00141401,2896.2,2895.3,2.6968161]
[1644768972706,0.00141401,2896.2,2895.3,1.72662]
[1644768972905,0.00141401,2896.2,2895.3,0.86342]
[1644768972906,0.497,2896.1,2895.3,0.86342]
[1644768973105,3.86878017,2896.0,2895.3,0.86342]
[1644768973305,0.497,2895.9,2895.3,0.86342]
[1644768973508,3.79038037,2895.8,2895.3,0.86342]
[1644768973706,0.497,2895.9,2895.6,0.01145908]
[1644768973962,0.447,2895.9,2895.6,0.01145908]
[1644768974555,0.447,2895.9,2895.3,1.13728506]
[1644768974756,0.447,2895.9,2895.6,0.01145901]
[1644768974757,1.38799891,2895.9,2895.6,0.01145901]
[1644768974955,0.1726,2895.8,2895.6,0.01145901]
[1644768975155,0.497,2895.7,2895.6,0.01145901]
[1644768975755,0.497,2895.7,2895.2,0.05284293]
[1644768975756,0.497,2895.7,2895.2,0.007]
[1644768975955,0.497,2895.7,2895.5,0.01145915]
[1644768975956,0.1726,2895.6,2895.5,0.01145915]
[1644768976156,1.66698863,2895.6,2895.5,0.01145915]
[1644768976356,1.49438863,2895.6,2895.5,0.01145915]
[1644768976961,1.49438863,2895.6,2894.8,1.72703]
[1644768976962,1.66698863,2895.6,2894.8,1.72703]
[1644768977158,0.1726,2895.5,2894.8,1.72703]
[1644768977362,0.1726,2895.5,2893.8,6.04439]
[1644768977363,11.22213684,2894.9,2893.8,6.04439]
[1644768977559,0.01202236,2894.2,2894.0,0.85634652]
[1644768977803,0.1726,2895.3,2894.0,0.30237301]
[1644768978002,0.497,2894.8,2893.9,0.86366]
[1644768979004,0.497,2894.8,2894.5,0.96040568]
[1644768979203,0.497,2894.8,2893.9,0.86366]
[1644768979611,0.497,2894.8,2894.0,0.86365]
[1644768979907,0.1376,2895.4,2894.0,0.86365]
[1644768979908,3.5,2895.4,2894.0,0.86365]
[1644768980206,0.497,2895.3,2894.0,0.86365]
[1644768980407,0.1726,2895.2,2894.0,0.81365]
[1644768980808,0.1726,2895.2,2894.5,1.09381392]
[1644768982065,0.18404111,2895.2,2894.7,0.01144289]
[1644768982270,0.01144111,2895.2,2894.7,0.01144289]
[1644768983071,1.1918731,2895.5,2894.6,0.00186275]
[1644768983270,3.43906534,2895.9,2894.6,0.00186275]
[1644768983271,3.43906534,2895.9,2894.8,0.00393255]
[1644768983871,3.3193,2895.9,2894.8,0.00393255]
[1644768984073,3.3193,2895.9,2894.8,0.86746255]
[1644768984271,3.3193,2895.9,2895.3,0.97773583]
[1644768984472,0.1726,2896.4,2895.4,0.00186275]
[1644768984672,0.1726,2896.5,2895.4,0.00186275]
[1644768984874,8.56222046,2896.7,2895.4,0.00186275]
[1644768985075,3.87472046,2896.7,2895.4,0.00186275]
[1644768985501,0.89987968,2896.6,2895.4,0.00186275]
[1644768985707,0.01146475,2896.2,2895.4,0.00186275]
[1644768985909,0.497,2896.1,2895.2,0.00186275]
[1644768986107,0.497,2896.1,2894.9,0.01147005]
[1644768986108,0.497,2896.1,2895.0,0.00186275]
[1644768986308,0.00149451,2895.1,2895.0,0.00186275]
[1644768986508,0.00149451,2895.1,2894.9,1.86342]
[1644768986708,0.00149451,2895.1,2895.0,0.93066812]
[1644768987706,0.00149451,2895.1,2895.0,1.79412812]
[1644768987909,0.39988978,2896.3,2895.9,1.15915412]
[1644768988308,0.39988978,2896.3,2895.1,0.25186275]
[1644768988509,0.39988978,2896.3,2895.2,0.00186275]
[1644768989346,0.01146516,2895.9,2895.3,1.02735083]
[1644768989545,0.01146516,2895.9,2895.4,0.00186275]
[1644768990152,0.497,2896.1,2895.4,0.00186275]
[1644768990548,0.01146529,2895.8,2895.4,0.00186275]
[1644768991352,4.3350102,2896.1,2895.4,0.00186275]
[1644768991555,4.5076102,2896.1,2895.4,0.00186275]
[1644768991854,0.01146536,2895.7,2895.4,0.00186275]
[1644768992055,0.01146536,2895.7,2895.2,0.00186275]
[1644768992699,4.5076102,2896.1,2895.4,1.10182809]
[1644768992700,0.6696,2896.1,2895.4,1.10182809]
[1644768992898,0.01146556,2895.6,2895.5,0.00186275]
[1644768993096,0.01146556,2895.6,2895.4,1.10182809]
[1644768993896,0.6696,2896.1,2895.4,1.10182809]
[1644768993897,0.1726,2896.1,2895.4,1.10182809]
[1644768994099,4.88708,2896.9,2895.4,1.10182809]
[1644768994100,0.01146549,2895.6,2895.5,0.00186275]
[1644768994297,0.01146549,2895.6,2895.4,1.10182809]
[1644768995100,3.5,2896.8,2895.7,0.86328]
[1644768995303,0.1726,2896.9,2895.7,0.86328]
[1644768995899,0.11976534,2897.0,2895.7,0.86328]
[1644768996101,0.11976534,2897.0,2896.4,0.96690344]
[1644768996301,5.65533,2897.3,2895.9,0.3]
[1644768996302,0.60010784,2896.1,2895.9,0.3]
[1644768996555,0.01146435,2896.5,2896.0,0.86317]
[1644768996756,0.01146435,2896.5,2896.0,1.46317]
[1644768996954,0.01146435,2896.5,2896.0,1.96017]
[1644768997155,0.01146435,2896.5,2896.1,1.09122355]
[1644768997355,1.46895981,2897.5,2896.1,1.09122355]
[1644768997555,3.5,2897.4,2896.1,2.09122355]
[1644768997755,0.01146881,2896.4,2896.3,0.8631]
[1644768998058,0.01146881,2896.4,2896.1,3.81731355]
[1644768998655,0.1726,2897.4,2896.2,0.86308]
[1644768998855,1.46895981,2897.5,2896.5,0.86301]
[1644768999056,1.46895981,2897.5,2896.6,0.3]
[1644768999455,1.46895981,2897.5,2896.5,0.1724]
[1644769000058,1.46895981,2897.5,2896.7,0.86303]
[1644769000059,0.01146786,2897.1,2896.7,0.86303]
[1644769000302,0.01146786,2897.1,2896.7,1.86303]
[1644769000708,0.01146786,2897.1,2896.8,1.05760642]
[1644769001106,1.46895981,2897.5,2896.8,1.92056642]
[1644769001304,0.01125294,2897.1,2896.8,1.92056642]
[1644769001709,0.01125294,2897.1,2896.8,3.78352642]
[1644769002311,1.46895981,2897.5,2896.8,3.78352642]
[1644769002510,1.46895981,2897.5,2897.3,1.15087286]
[1644769003964,1.46895981,2897.5,2897.3,1.45087286]
[1644769004154,0.00574131,2898.2,2897.3,1.45087286]
[1644769004354,0.00574131,2898.2,2897.3,2.45087286]
[1644769004554,0.00574131,2898.2,2897.3,1.45087286]
[1644769004755,0.00574131,2898.2,2897.3,7.75087286]
[1644769004954,0.00574131,2898.2,2897.4,0.1724]
[1644769005155,0.00574131,2898.2,2897.6,1.72513]
[1644769005354,0.00574131,2898.2,2897.7,0.6694]
[1644769005754,0.00574131,2898.2,2897.7,1.6694]
[1644769005957,0.00574131,2898.2,2897.7,2.53197]
[1644769006359,0.00574131,2898.2,2897.7,3.3945]
[1644769006557,0.00574131,2898.2,2897.8,1.78830926]